fUSD/lending_fUSD_20260506
["ID","MTS","AMOUNT","RATE_DAILY","PERIOD"]
[421697107,1778045618000,-300.0,0.00038316,2]
[421697101,1778045618000,-368.09857022,0.00038316,2]
[421697105,1778045618000,-862.96230178,0.00038316,2]
[421697106,1778045618000,-300.0,0.00038316,2]
[421697109,1778045618000,-300.0,0.00038316,2]
[421697102,1778045618000,-1145.24599896,0.00038316,2]
[421697108,1778045618000,-300.0,0.00038316,2]
[421697110,1778045618000,-310.3725982,0.00038316,2]
[421697111,1778045618000,-300.0,0.00038316,2]
[421697112,1778045618000,-300.0,0.00038316,2]
[421697115,1778045618000,-481.18706949,0.00038316,2]
[421697120,1778045618000,-282.01930815,0.00038316,2]
[421697116,1778045618000,-451.13853711,0.00038316,2]
[421697117,1778045618000,-300.0,0.00038316,2]
[421697118,1778045618000,-300.0,0.00038316,2]
[421697113,1778045618000,-463.08064867,0.00038316,2]
[421697119,1778045618000,-300.0,0.00038316,2]
[421697114,1778045618000,-300.0,0.00038316,2]
[421697062,1778045618000,-300.0,0.00038316,2]
[421697095,1778045618000,-300.0,0.00038316,2]
[421697096,1778045618000,-1793.38851355,0.00038316,2]
[421697037,1778045618000,-481.18706949,0.00038316,2]
[421697090,1778045618000,-300.0,0.00038316,2]
[421697093,1778045618000,-300.0,0.00038316,2]
[421697061,1778045618000,-300.0,0.00038316,2]
[421697065,1778045618000,-300.0,0.00038316,2]
[421697064,1778045618000,-300.0,0.00038316,2]
[421697066,1778045618000,-300.0,0.00038316,2]
[421697063,1778045618000,-300.0,0.00038316,2]
[421697067,1778045618000,-300.0,0.00038316,2]
[421697072,1778045618000,-300.0,0.00038316,2]
[421697071,1778045618000,-300.0,0.00038316,2]
[421697073,1778045618000,-300.0,0.00038316,2]
[421697075,1778045618000,-300.0,0.00038316,2]
[421697078,1778045618000,-529.86413524,0.00038316,2]
[421697083,1778045618000,-300.0,0.00038316,2]
[421697070,1778045618000,-300.0,0.00038316,2]
[421697076,1778045618000,-300.0,0.00038316,2]
[421697081,1778045618000,-309.13065885,0.00038316,2]
[421697087,1778045618000,-300.0,0.00038316,2]
[421697091,1778045618000,-300.0,0.00038316,2]
[421697089,1778045618000,-300.0,0.00038316,2]
[421697088,1778045618000,-300.0,0.00038316,2]
[421697086,1778045618000,-300.06118393,0.00038316,2]
[421697068,1778045618000,-491.85958444,0.00038316,2]
[421697085,1778045618000,-300.0,0.00038316,2]
[421697077,1778045618000,-526.86051061,0.00038316,2]
[421697080,1778045618000,-891.9241332,0.00038316,2]
[421697074,1778045618000,-603.45144378,0.00038316,2]
[421697079,1778045618000,-1065.13491717,0.00038316,2]
[421697082,1778045618000,-724.83131769,0.00038316,2]
[421697084,1778045618000,-301.2859328,0.00038316,2]
[421697122,1778045619000,-723.5374331,0.00013699,2]
[421697121,1778045619000,-181.44954426,0.0001349,2]
[421697126,1778045619000,-181.44954426,0.00016663,2]
[421697125,1778045619000,-773.56152231,0.00013699,2]
[421697123,1778045619000,-722.8955016,0.00013699,2]
[421697128,1778045619000,-199.06317263,0.0002,2]
[421697129,1778045619000,-2000.0,0.0002521,2]
[421697130,1778045619000,-546.08680251,0.0002521,2]
[421697124,1778045619000,-280.00554299,0.00013699,2]
[421697127,1778045619000,-199.06317263,0.0002,2]
[421697132,1778045620000,236480.77271938,0.000107,2]
[421697131,1778045620000,-300.0,0.000135,2]
[421697133,1778045621000,-300.0,0.000135,2]
[421697135,1778045622000,-300.0,0.00013499,2]
[421697134,1778045622000,-300.0,0.00013499,2]
[421697138,1778045624000,500.0,0.00011999,2]
[421697137,1778045624000,500.0,0.00011999,2]
[421697136,1778045624000,500.0,0.00011999,2]
[421697139,1778045625000,500.0,0.00011999,2]
[421697141,1778045626000,3846.4332596,0.00011989,2]
[421697140,1778045626000,8000.01,0.00011989,2]
[421697158,1778045628000,500.0,0.00010699,2]
[421697143,1778045628000,500.0,0.00010699,2]
[421697142,1778045628000,500.0,0.00010699,2]
[421697144,1778045628000,500.0,0.00010699,2]
[421697147,1778045628000,500.0,0.00010699,2]
[421697146,1778045628000,500.0,0.00010699,2]
[421697148,1778045628000,500.0,0.00010699,2]
[421697149,1778045628000,500.0,0.00010699,2]
[421697145,1778045628000,500.0,0.00010699,2]
[421697151,1778045628000,500.0,0.00010699,2]
[421697153,1778045628000,500.0,0.00010699,2]
[421697152,1778045628000,500.0,0.00010699,2]
[421697150,1778045628000,175.03451219,0.00010699,2]
[421697154,1778045628000,478.54222821,0.00010699,2]
[421697155,1778045628000,21.45777179,0.00010699,2]
[421697156,1778045628000,500.0,0.00010699,2]
[421697157,1778045628000,500.0,0.00010699,2]
[421697159,1778045629000,500.0,0.00011999,2]
[421697160,1778045629000,500.0,0.00011999,2]
[421697162,1778045629000,500.0,0.00011999,2]
[421697163,1778045629000,371.03198542,0.00011999,2]
[421697165,1778045629000,373.9814751,0.00010699,2]
[421697161,1778045629000,500.0,0.00011999,2]
[421697166,1778045629000,500.0,0.00011999,2]
[421697167,1778045629000,500.0,0.00011999,2]
[421697169,1778045629000,497.55703448,0.00011999,2]
[421697168,1778045629000,500.0,0.00011999,2]
[421697170,1778045629000,461.97997386,0.00011999,2]
[421697164,1778045629000,500.0,0.00011999,2]
[421697171,1778045629000,500.0,0.00011999,2]
[421697172,1778045630000,500.0,0.00011999,2]
[421697184,1778045630000,500.0,0.00010699,2]
[421697183,1778045630000,500.0,0.00010699,2]
[421697182,1778045630000,500.0,0.00010699,2]
[421697180,1778045630000,500.0,0.00010699,2]
[421697181,1778045630000,500.0,0.00010699,2]
[421697178,1778045630000,500.0,0.00010699,2]
[421697177,1778045630000,225.99824065,0.00010699,2]
[421697176,1778045630000,274.00175935,0.00010699,2]
[421697175,1778045630000,500.0,0.00010699,2]
[421697173,1778045630000,500.0,0.00010699,2]
[421697174,1778045630000,500.0,0.00010699,2]
[421697185,1778045630000,500.0,0.00010699,2]
[421697179,1778045630000,500.0,0.00010699,2]
[421697187,1778045630000,500.0,0.00010699,2]
[421697191,1778045630000,500.0,0.00010699,2]
[421697188,1778045630000,500.0,0.00010699,2]
[421697186,1778045630000,500.0,0.00010699,2]
[421697203,1778045630000,500.0,0.00010699,2]
[421697202,1778045630000,500.0,0.00010699,2]
[421697200,1778045630000,500.0,0.00010699,2]
[421697201,1778045630000,500.0,0.00010699,2]
[421697199,1778045630000,500.0,0.00010699,2]
[421697198,1778045630000,225.98824065,0.00010699,2]
[421697195,1778045630000,500.0,0.00010699,2]
[421697196,1778045630000,500.0,0.00010699,2]
[421697194,1778045630000,500.0,0.00010699,2]
[421697193,1778045630000,500.0,0.00010699,2]
[421697192,1778045630000,500.0,0.00010699,2]
[421697189,1778045630000,500.0,0.00010699,2]
[421697197,1778045630000,274.01175935,0.00010699,2]
[421697190,1778045630000,500.0,0.00010699,2]
[421697205,1778045631000,326.02342621,0.00010699,2]
[421697204,1778045631000,500.0,0.00010699,2]
[421697206,1778045731000,500.0,0.00010699,2]
[421697215,1778045732000,500.0,0.00010699,2]
[421697214,1778045732000,167.43286327,0.00010699,2]
[421697213,1778045732000,500.0,0.00010699,2]
[421697212,1778045732000,500.0,0.00010699,2]
[421697211,1778045732000,500.0,0.00010699,2]
[421697210,1778045732000,500.0,0.00010699,2]
[421697209,1778045732000,500.0,0.00010699,2]
[421697207,1778045732000,500.0,0.00010699,2]
[421697208,1778045732000,500.0,0.00010699,2]
[421697216,1778045732000,500.0,0.00010699,2]
[421697218,1778045735000,-2715.20840726,0.00012736,2]
[421697217,1778045735000,-1779.99159274,0.00012736,2]
[421697219,1778045735000,-156.93,0.00013067,2]
[421697221,1778045735000,-570.04885173,0.000134,2]
[421697222,1778045735000,-4495.2,0.000134,2]
[421697220,1778045735000,-1053.01274101,0.00013399,2]
[421697223,1778045757000,-159.15334214,0.00013399,2]
[421697224,1778045758000,-159.15334214,0.000134,2]
[421697225,1778045771000,-4750.32510613,0.000134,2]
[421697226,1778045827000,1540.711616,7.945e-05,2]
[421697227,1778046034000,1051.99,0.00022,30]
[421697230,1778046044000,-150.0,0.00014247,21]
[421697228,1778046044000,-290.55978743,0.00013689,21]
[421697229,1778046044000,-159.17631842,0.00013689,21]
[421697233,1778046462000,-200.0,0.000125,4]
[421697234,1778046518000,-400.0,0.000126,4]
[421697235,1778046619000,-400.0,0.00012673,2]
[421697236,1778046619000,-400.0,0.00012673,2]
[421697237,1778046619000,-400.0,0.00012673,2]
[421697240,1778046619000,-700.0,0.000127,4]
[421697239,1778046619000,-336.08,0.00012673,2]
[421697241,1778046619000,-900.0,0.000128,4]
[421697238,1778046619000,-400.0,0.00012673,2]
[421697245,1778046620000,-1763.92,0.00012953,2]
[421697246,1778046620000,-172.16,0.00013105,2]
[421697244,1778046620000,-236.08,0.00012953,2]
[421697242,1778046620000,-500.0,0.00012801,2]
[421697243,1778046620000,-1200.0,0.000129,4]
[421697254,1778046621000,-442.76,0.0001315,2]
[421697252,1778046621000,-151.0,0.0001315,2]
[421697250,1778046621000,-500.0,0.0001315,2]
[421697256,1778046621000,-500.0,0.0001315,2]
[421697247,1778046621000,-27.84,0.00013105,2]
[421697249,1778046621000,-200.0,0.0001315,2]
[421697248,1778046621000,-500.0,0.0001315,2]
[421697251,1778046621000,-500.0,0.0001315,2]
[421697257,1778046621000,-151.0,0.0001315,2]
[421697253,1778046621000,-57.24,0.0001315,2]
[421697259,1778046621000,-151.0,0.0001315,2]
[421697260,1778046621000,-40.32,0.0001315,2]
[421697264,1778046621000,-500.0,0.0001315,2]
[421697262,1778046621000,-151.0,0.0001315,2]
[421697263,1778046621000,-319.89580616,0.0001315,2]
[421697265,1778046621000,-151.0,0.0001315,2]
[421697258,1778046621000,-500.0,0.0001315,2]
[421697266,1778046621000,-354.50419384,0.0001315,2]
[421697255,1778046621000,-151.0,0.0001315,2]
[421697261,1778046621000,-459.68,0.0001315,2]
[421697268,1778046622000,-151.0,0.0001315,2]
[421697267,1778046622000,-145.49580616,0.0001315,2]
[421697270,1778046622000,-500.0,0.0001315,2]
[421697271,1778046622000,-182.95386525,0.0001315,2]
[421697272,1778046622000,-151.0,0.0001315,2]
[421697273,1778046622000,-500.0,0.0001315,2]
[421697269,1778046622000,-151.0,0.0001315,2]
[421697275,1778046622000,-3.63032859,0.0001315,2]
[421697274,1778046622000,-151.0,0.0001315,2]
[421697278,1778046622000,-500.0,0.0001315,2]
[421697279,1778046622000,-151.0,0.0001315,2]
[421697281,1778046622000,-151.0,0.0001315,2]
[421697277,1778046622000,-151.0,0.0001315,2]
[421697284,1778046622000,-33.71032859,0.0001315,2]
[421697280,1778046622000,-151.0,0.0001315,2]
[421697283,1778046622000,-151.0,0.0001315,2]
[421697282,1778046622000,-151.0,0.0001315,2]
[421697276,1778046622000,-496.36967141,0.0001315,2]
[421697285,1778046623000,-300.0,0.000125,4]
[421697286,1778046623000,-600.0,0.000126,4]
[421697287,1778046623000,-1000.0,0.000127,4]
[421697288,1778046623000,-36.08,0.000128,4]
[421697374,1778046679000,-1263.92,0.000128,4]
[421697382,1778046724000,-151.0,0.0001315,2]
[421697376,1778046724000,-244.41,0.00013014,2]
[421697377,1778046724000,-117.28967141,0.0001315,2]
[421697375,1778046724000,-1700.0,0.000129,4]
[421697379,1778046724000,-151.0,0.0001315,2]
[421697378,1778046724000,-151.0,0.0001315,2]
[421697381,1778046724000,-151.0,0.0001315,2]
[421697380,1778046724000,-151.0,0.0001315,2]
[421697387,1778046724000,-151.0,0.0001315,2]
[421697383,1778046724000,-151.0,0.0001315,2]
[421697386,1778046724000,-151.0,0.0001315,2]
[421697388,1778046724000,-151.0,0.0001315,2]
[421697385,1778046724000,-151.0,0.0001315,2]
[421697384,1778046724000,-151.0,0.0001315,2]
[421697390,1778046724000,-151.0,0.0001315,2]
[421697389,1778046724000,-151.0,0.0001315,2]
[421697399,1778046725000,-352.56073713,0.0001315,2]
[421697400,1778046725000,-147.43926287,0.0001315,2]
[421697398,1778046725000,-500.0,0.0001315,2]
[421697396,1778046725000,-500.0,0.0001315,2]
[421697392,1778046725000,-500.0,0.0001315,2]
[421697395,1778046725000,-500.0,0.0001315,2]
[421697391,1778046725000,-151.0,0.0001315,2]
[421697402,1778046725000,-500.0,0.0001315,2]
[421697394,1778046725000,-500.0,0.0001315,2]
[421697403,1778046725000,-500.0,0.0001315,2]
[421697393,1778046725000,-500.0,0.0001315,2]
[421697401,1778046725000,-500.0,0.0001315,2]
[421697397,1778046725000,-500.0,0.0001315,2]
[421697412,1778046725000,-282.020002,0.000132,2]
[421697411,1778046725000,-433.368,0.000132,2]
[421697409,1778046725000,-1263.92,0.000132,2]
[421697410,1778046725000,-258.4126587,0.000132,2]
[421697408,1778046725000,-4755.76670753,0.000132,2]
[421697407,1778046725000,-13467.14192434,0.00013166,2]
[421697405,1778046725000,-46951.7023318,0.00013166,2]
[421697404,1778046725000,-2080.17592889,0.0001315,2]
[421697406,1778046725000,-14691.0,0.00013166,2]
[421697440,1778046726000,-2157.14243826,0.00013698,2]
[421697448,1778046726000,-500.0,0.00013698,2]
[421697445,1778046726000,-199.75341924,0.00013698,2]
[421697442,1778046726000,-500.0,0.00013698,2]
[421697439,1778046726000,-200.0,0.00013698,2]
[421697443,1778046726000,-500.0,0.00013698,2]
[421697444,1778046726000,-500.0,0.00013698,2]
[421697441,1778046726000,-501.05677539,0.00013698,2]
[421697447,1778046726000,-500.0,0.00013698,2]
[421697446,1778046726000,-500.0,0.00013698,2]
[421697449,1778046726000,-500.0,0.00013698,2]
[421697455,1778046726000,-500.0,0.00013698,2]
[421697460,1778046726000,-500.0,0.00013698,2]
[421697456,1778046726000,-457.26723297,0.00013698,2]
[421697452,1778046726000,-500.0,0.00013698,2]
[421697458,1778046726000,-500.0,0.00013698,2]
[421697454,1778046726000,-500.0,0.00013698,2]
[421697453,1778046726000,-500.0,0.00013698,2]
[421697450,1778046726000,-500.0,0.00013698,2]
[421697457,1778046726000,-502.80341295,0.00013698,2]
[421697459,1778046726000,-500.0,0.00013698,2]
[421697436,1778046726000,-151.0,0.00013496,2]
[421697451,1778046726000,-500.0,0.00013698,2]
[421697438,1778046726000,-156.93,0.00013606,2]
[421697414,1778046726000,-833297.98748972,0.000132,2]
[421697435,1778046726000,-496.69602372,0.00013461,2]
[421697462,1778046726000,-500.0,0.00013698,2]
[421697413,1778046726000,-36526.12644205,0.000132,2]
[421697415,1778046726000,-804.35,0.00013227,2]
[421697416,1778046726000,-6793.3795,0.000133,2]
[421697419,1778046726000,-2500.0,0.000133,2]
[421697422,1778046726000,-702.14931837,0.000133,2]
[421697420,1778046726000,-5000.0,0.000133,2]
[421697423,1778046726000,-160.86224571,0.00013373,2]
[421697421,1778046726000,-1434.73919991,0.000133,2]
[421697417,1778046726000,-33129.2882,0.000133,2]
[421697437,1778046726000,-3539.28992609,0.00013498,2]
[421697418,1778046726000,-2234.40720135,0.000133,2]
[421697425,1778046726000,-223.19296789,0.0001339,2]
[421697426,1778046726000,-9999.99,0.00013399,2]
[421697428,1778046726000,-999.99,0.00013399,2]
[421697429,1778046726000,-3404.76,0.00013399,2]
[421697427,1778046726000,-150.99,0.00013399,2]
[421697430,1778046726000,-365.994,0.00013399,2]
[421697431,1778046726000,-150.0,0.00013399,2]
[421697433,1778046726000,-2000.0,0.000134,2]
[421697434,1778046726000,-154.99317028,0.00013406,2]
[421697432,1778046726000,-1317383.742,0.000134,2]
[421697424,1778046726000,-501.10461545,0.00013373,2]
[421697464,1778046726000,-500.0,0.00013698,2]
[421697488,1778046726000,-500.0,0.00013698,2]
[421697461,1778046726000,-500.0,0.00013698,2]
[421697491,1778046726000,-500.0,0.00013698,2]
[421697492,1778046726000,-500.0,0.00013698,2]
[421697495,1778046726000,-500.0,0.00013698,2]
[421697494,1778046726000,-500.0,0.00013698,2]
[421697497,1778046726000,-500.0,0.00013698,2]
[421697498,1778046726000,-500.0,0.00013698,2]
[421697496,1778046726000,-152.30012021,0.00013698,2]
[421697503,1778046726000,-500.0,0.00013698,2]
[421697501,1778046726000,-500.0,0.00013698,2]
[421697504,1778046726000,-500.0,0.00013698,2]
[421697505,1778046726000,-500.0,0.00013698,2]
[421697500,1778046726000,-500.0,0.00013698,2]
[421697499,1778046726000,-500.0,0.00013698,2]
[421697506,1778046726000,-500.0,0.00013698,2]
[421697507,1778046726000,-500.0,0.00013698,2]
[421697509,1778046726000,-500.0,0.00013698,2]
[421697508,1778046726000,-500.0,0.00013698,2]
[421697511,1778046726000,-182.06996762,0.00013698,2]
[421697510,1778046726000,-500.0,0.00013698,2]
[421697512,1778046726000,-500.0,0.00013698,2]
[421697514,1778046726000,-500.0,0.00013698,2]
[421697463,1778046726000,-500.0,0.00013698,2]
[421697513,1778046726000,-500.0,0.00013698,2]
[421697489,1778046726000,-500.0,0.00013698,2]
[421697493,1778046726000,-500.0,0.00013698,2]
[421697502,1778046726000,-500.0,0.00013698,2]
[421697487,1778046726000,-500.0,0.00013698,2]
[421697468,1778046726000,-504.36314332,0.00013698,2]
[421697490,1778046726000,-500.0,0.00013698,2]
[421697465,1778046726000,-500.0,0.00013698,2]
[421697469,1778046726000,-500.0,0.00013698,2]
[421697466,1778046726000,-500.0,0.00013698,2]
[421697467,1778046726000,-500.0,0.00013698,2]
[421697471,1778046726000,-500.0,0.00013698,2]
[421697472,1778046726000,-500.0,0.00013698,2]
[421697473,1778046726000,-500.0,0.00013698,2]
[421697481,1778046726000,-500.0,0.00013698,2]
[421697474,1778046726000,-500.0,0.00013698,2]
[421697476,1778046726000,-500.0,0.00013698,2]
[421697470,1778046726000,-500.0,0.00013698,2]
[421697475,1778046726000,-500.0,0.00013698,2]
[421697484,1778046726000,-500.0,0.00013698,2]
[421697485,1778046726000,-500.0,0.00013698,2]
[421697483,1778046726000,-500.0,0.00013698,2]
[421697482,1778046726000,-500.0,0.00013698,2]
[421697486,1778046726000,-500.0,0.00013698,2]
[421697477,1778046726000,-500.0,0.00013698,2]
[421697479,1778046726000,-500.0,0.00013698,2]
[421697478,1778046726000,-500.0,0.00013698,2]
[421697480,1778046726000,-500.0,0.00013698,2]
[421697556,1778046727000,-500.0,0.00016438,2]
[421697557,1778046727000,-500.0,0.00016438,2]
[421697555,1778046727000,-500.0,0.00016438,2]
[421697554,1778046727000,-358.7,0.00016438,2]
[421697547,1778046727000,-2405.55389864,0.00015342,2]
[421697558,1778046727000,-500.0,0.00016438,2]
[421697549,1778046727000,-200.0,0.0001589,2]
[421697546,1778046727000,-200.0,0.00015342,2]
[421697551,1778046727000,-2000.0,0.00016191,2]
[421697553,1778046727000,-2586.85809042,0.00016438,2]
[421697550,1778046727000,-2494.55939289,0.0001589,2]
[421697548,1778046727000,-500.0,0.00015889,2]
[421697559,1778046727000,-200.0,0.00016986,2]
[421697570,1778046727000,-1204.59658555,0.00018,2]
[421697563,1778046727000,-1434.7391999,0.00017459,2]
[421697562,1778046727000,-2234.4072013,0.00017214,2]
[421697565,1778046727000,-2781.82699784,0.00017534,2]
[421697564,1778046727000,-200.0,0.00017534,2]
[421697560,1778046727000,-2682.57183977,0.00016986,2]
[421697561,1778046727000,-1000.0,0.00016986,2]
[421697568,1778046727000,-2000.0,0.00017811,2]
[421697567,1778046727000,-1936.08,0.00017742,2]
[421697571,1778046727000,-1543.70818639,0.00018,2]
[421697569,1778046727000,-1236.33016154,0.0001789,2]
[421697574,1778046727000,-1238.73742285,0.00018082,2]
[421697552,1778046727000,-200.0,0.00016438,2]
[421697572,1778046727000,-200.0,0.00018082,2]
[421697566,1778046727000,-1500.0,0.00017534,2]
[421697545,1778046727000,-2234.4072013,0.00015257,2]
[421697520,1778046727000,-500.0,0.00013698,2]
[421697543,1778046727000,-345.95,0.000151,2]
[421697573,1778046727000,-2884.75459676,0.00018082,2]
[421697516,1778046727000,-500.0,0.00013698,2]
[421697515,1778046727000,-500.0,0.00013698,2]
[421697518,1778046727000,-500.0,0.00013698,2]
[421697517,1778046727000,-500.0,0.00013698,2]
[421697519,1778046727000,-500.0,0.00013698,2]
[421697521,1778046727000,-500.0,0.00013698,2]
[421697522,1778046727000,-500.0,0.00013698,2]
[421697523,1778046727000,-500.0,0.00013698,2]
[421697527,1778046727000,-500.0,0.00013698,2]
[421697526,1778046727000,-500.0,0.00013698,2]
[421697524,1778046727000,-500.0,0.00013698,2]
[421697528,1778046727000,-170.36,0.00013699,2]
[421697525,1778046727000,-500.0,0.00013698,2]
[421697530,1778046727000,-170.36,0.00013927,2]
[421697529,1778046727000,-200.0,0.00013699,2]
[421697532,1778046727000,-156.93,0.00014146,2]
[421697531,1778046727000,-250.0,0.0001394,2]
[421697537,1778046727000,-162.75,0.00014532,2]
[421697535,1778046727000,-2236.95670848,0.00014246,2]
[421697539,1778046727000,-156.93,0.00014685,2]
[421697534,1778046727000,-200.0,0.00014246,2]
[421697540,1778046727000,-200.0,0.00014794,2]
[421697533,1778046727000,-170.36,0.00014155,2]
[421697536,1778046727000,-170.36,0.00014384,2]
[421697541,1778046727000,-2319.72410669,0.00014794,2]
[421697542,1778046727000,-9466.27832853,0.000148,2]
[421697544,1778046727000,-156.93,0.00015224,2]
[421697577,1778046727000,-500.0,0.00018628,2]
[421697538,1778046727000,-2000.0,0.00014572,2]
[421697578,1778046727000,-200.0,0.0001863,2]
[421697606,1778046727000,-286.0,0.0002,2]
[421697614,1778046727000,-225.0,0.00021,2]
[421697607,1778046727000,-937.0,0.0002,2]
[421697612,1778046727000,-358.7,0.00020381,2]
[421697609,1778046727000,-151.0,0.0002,2]
[421697615,1778046727000,-176.0,0.00021,2]
[421697616,1778046727000,-286.0,0.00021,2]
[421697618,1778046727000,-289.0,0.00021,2]
[421697617,1778046727000,-937.0,0.00021,2]
[421697621,1778046727000,-150.0,0.00021213,2]
[421697619,1778046727000,-151.0,0.00021,2]
[421697625,1778046727000,-5000.0,0.00021918,2]
[421697623,1778046727000,-1434.7391999,0.00021618,2]
[421697608,1778046727000,-289.0,0.0002,2]
[421697620,1778046727000,-2234.4072013,0.00021127,2]
[421697624,1778046727000,-250.0,0.0002176,2]
[421697622,1778046727000,-500.0,0.00021367,2]
[421697627,1778046727000,-482.0,0.00022,2]
[421697629,1778046727000,-176.0,0.00022,2]
[421697628,1778046727000,-225.0,0.00022,2]
[421697631,1778046727000,-937.0,0.00022,2]
[421697632,1778046727000,-289.0,0.00022,2]
[421697633,1778046727000,-151.0,0.00022,2]
[421697630,1778046727000,-286.0,0.00022,2]
[421697637,1778046727000,-17006.8247856,0.00022466,2]
[421697635,1778046727000,-358.7,0.00022353,2]
[421697636,1778046727000,-1412.32,0.00022466,2]
[421697576,1778046727000,-358.7,0.0001841,2]
[421697626,1778046727000,-1000.0,0.00021918,5]
[421697611,1778046727000,-895.0,0.0002,2]
[421697634,1778046727000,-350.0,0.00022308,2]
[421697610,1778046727000,-9419.0,0.0002,2]
[421697613,1778046727000,-482.0,0.00021,2]
[421697575,1778046727000,-702.14931832,0.00018152,2]
[421697580,1778046727000,-1632.07156104,0.00019,2]
[421697581,1778046727000,-160.0,0.00019169,2]
[421697582,1778046727000,-2234.4072013,0.0001917,2]
[421697585,1778046727000,-500.0,0.00019178,2]
[421697587,1778046727000,-500.0,0.00019178,2]
[421697588,1778046727000,-500.0,0.00019178,2]
[421697589,1778046727000,-500.0,0.00019178,2]
[421697586,1778046727000,-500.0,0.00019178,2]
[421697584,1778046727000,-500.0,0.00019178,2]
[421697590,1778046727000,-500.0,0.00019178,2]
[421697583,1778046727000,-200.0,0.00019178,2]
[421697592,1778046727000,-500.0,0.00019178,2]
[421697579,1778046727000,-2991.49051684,0.0001863,2]
[421697593,1778046727000,-500.0,0.00019178,2]
[421697591,1778046727000,-500.0,0.00019178,2]
[421697605,1778046727000,-176.0,0.0002,2]
[421697603,1778046727000,-482.0,0.0002,2]
[421697602,1778046727000,-1200.0,0.0002,2]
[421697604,1778046727000,-225.0,0.0002,2]
[421697601,1778046727000,-5000.01,0.0002,2]
[421697599,1778046727000,-20274.09403763,0.0002,2]
[421697600,1778046727000,-505.6921609,0.0002,10]
[421697594,1778046727000,-500.0,0.00019178,2]
[421697595,1778046727000,-500.0,0.00019178,2]
[421697597,1778046727000,-2000.0,0.0001943,2]
[421697598,1778046727000,-200.0,0.00019726,2]
[421697596,1778046727000,-500.0,0.00019178,2]
[421697680,1778046728000,-500.0,0.00024657,2]
[421697679,1778046728000,-500.0,0.00024657,2]
[421697681,1778046728000,-500.0,0.00024657,2]
[421697677,1778046728000,-500.0,0.00024657,2]
[421697668,1778046728000,-289.0,0.00024,2]
[421697675,1778046728000,-7562.29273935,0.00024476,2]
[421697672,1778046728000,-350.95,0.00024174,2]
[421697669,1778046728000,-151.0,0.00024,2]
[421697670,1778046728000,-500.0,0.00024106,2]
[421697673,1778046728000,-1149.80661813,0.0002421,2]
[421697674,1778046728000,-358.7,0.00024324,2]
[421697676,1778046728000,-500.0,0.00024657,2]
[421697686,1778046728000,-500.0,0.00024657,2]
[421697678,1778046728000,-500.0,0.00024657,2]
[421697684,1778046728000,-500.0,0.00024657,2]
[421697685,1778046728000,-500.0,0.00024657,2]
[421697683,1778046728000,-500.0,0.00024657,2]
[421697688,1778046728000,-500.0,0.00024657,2]